fUST/lending_fUST_20250725
["ID","MTS","AMOUNT","RATE_DAILY","PERIOD"]
[374657969,1753403445610,-460.0,0.00018511,2]
[374657971,1753403445620,-3852.66,0.00018511,2]
[374657973,1753403445629,-460.0,0.00018511,2]
[374657975,1753403445639,-1023.4,0.00018511,2]
[374657977,1753403445649,-460.0,0.00018511,2]
[374657979,1753403445659,-460.0,0.00018511,2]
[374657980,1753403445668,-2667.14,0.00018511,2]
[374657982,1753403445678,-1197.8,0.00018511,2]
[374657984,1753403445688,-920.37,0.00018511,2]
[374657986,1753403445698,-460.0,0.00018511,2]
[374657988,1753403445708,-460.0,0.00018512,2]
[374657990,1753403445717,-767.54,0.00018512,2]
[374657992,1753403445727,-460.0,0.00018512,2]
[374657994,1753403445736,-460.0,0.00018512,2]
[374657997,1753403445747,-460.0,0.00018512,2]
[374657998,1753403445757,-460.0,0.00018512,2]
[374658000,1753403445767,-460.0,0.00018512,2]
[374658003,1753403445776,-460.0,0.00018512,2]
[374658004,1753403445785,-460.0,0.00018512,2]
[374658006,1753403445795,-460.0,0.00018512,2]
[374658009,1753403445805,-701.77,0.00018512,2]
[374658011,1753403445814,-569.95,0.00018512,2]
[374658012,1753403445823,-460.0,0.00018512,2]
[374658014,1753403445832,-460.0,0.00018512,2]
[374658016,1753403445842,-460.0,0.00018512,2]
[374658019,1753403445852,-462.07838381,0.00018512,2]
[374658020,1753403445862,-460.0,0.00018512,2]
[374658023,1753403445872,-460.0,0.00018512,2]
[374658025,1753403445881,-460.0,0.00018512,2]
[374658027,1753403445891,-963.68,0.00018512,2]
[374658028,1753403445901,-614.53,0.00018512,2]
[374658030,1753403445910,-460.0,0.00018512,2]
[374658032,1753403445920,-460.0,0.00018512,2]
[374658034,1753403445929,-460.0,0.00018512,2]
[374658036,1753403445939,-1011.84,0.00018512,2]
[374658038,1753403445949,-3080.4,0.00018512,2]
[374658040,1753403445959,-1436.23,0.00018512,2]
[374658042,1753403445968,-460.0,0.00018512,2]
[374658044,1753403445977,-460.0,0.00018512,2]
[374658046,1753403445987,-460.0,0.00018512,2]
[374658048,1753403445998,-460.0,0.00018512,2]
[374658050,1753403446008,-460.0,0.00018512,2]
[374658052,1753403446017,-724.3,0.00018512,2]
[374658055,1753403446027,-460.0,0.00018512,2]
[374658057,1753403446037,-460.0,0.00018512,2]
[374658058,1753403446046,-460.0,0.00018512,2]
[374658060,1753403446056,-460.0,0.00018512,2]
[374658062,1753403446066,-562.5570514,0.00018512,2]
[374658064,1753403446076,-460.0,0.00018512,2]
[374658067,1753403446085,-1192.38,0.00018512,2]
[374658068,1753403446095,-573.91,0.00018512,2]
[374658070,1753403446104,-1046.61,0.00018512,2]
[374658073,1753403446114,-460.0,0.00018512,2]
[374658074,1753403446124,-460.0,0.00018512,2]
[374658076,1753403446133,-460.0,0.00018512,2]
[374658078,1753403446143,-1132.12,0.00018512,2]
[374658080,1753403446153,-354.20597687,0.00018512,2]
[374658082,1753403446162,-460.0,0.00018512,2]
[374658084,1753403446171,-461.28992641,0.00018512,2]
[374658086,1753403446180,-1506.06,0.00018512,2]
[374658088,1753403446190,-460.0,0.00018512,2]
[374658090,1753403446199,-460.0,0.00018512,2]
[374658092,1753403446209,-475.02930782,0.00018512,2]
[374658094,1753403446223,-460.0,0.00018512,2]
[374658096,1753403446236,-460.0,0.00018512,2]
[374658098,1753403446247,-460.0,0.00018512,2]
[374658101,1753403446258,-460.0,0.00018512,2]
[374658102,1753403446268,-460.0,0.00018512,2]
[374658105,1753403446278,-460.0,0.00018512,2]
[374658115,1753403446371,-464.58377306,0.00018512,2]
[374658117,1753403446381,-460.0,0.00018512,2]
[374658120,1753403446393,-460.0,0.00018512,2]
[374658123,1753403446402,-460.0,0.00018512,2]
[374658125,1753403446412,-460.0,0.00018514,2]
[374658127,1753403446421,-460.0,0.00018514,2]
[374658129,1753403446430,-244.95410922,0.00018514,2]
[374658131,1753403446439,-460.0,0.00018514,2]
[374658133,1753403446448,-500.0,0.00018514,2]
[374658135,1753403446458,-3274.76,0.00018514,2]
[374658136,1753403446467,-345.24572044,0.00018514,2]
[374658139,1753403446478,-460.0,0.00018515,2]
[374658141,1753403446487,-460.0,0.00018515,2]
[374658143,1753403446498,-460.0,0.00018515,2]
[374658145,1753403446508,-460.0,0.00018515,2]
[374658146,1753403446518,-460.0,0.00018515,2]
[374658148,1753403446527,-479.01827678,0.00018515,2]
[374658150,1753403446537,-460.0,0.00018515,2]
[374658152,1753403446546,-460.0,0.00018515,2]
[374658155,1753403446556,-460.0,0.00018515,2]
[374658157,1753403446566,-460.0,0.00018515,2]
[374658159,1753403446575,-470.66558451,0.00018515,2]
[374658160,1753403446584,-460.0,0.00018515,2]
[374658163,1753403446594,-460.0,0.00018515,2]
[374658165,1753403446604,-460.0,0.00018515,2]
[374658166,1753403446614,-460.0,0.00018515,2]
[374658169,1753403446624,-460.0,0.00018515,2]
[374658170,1753403446633,-460.0,0.00018515,2]
[374658172,1753403446643,-425.10830222,0.00018515,2]
[374658174,1753403446652,-237.07492919,0.00018515,2]
[374658176,1753403446663,-460.0,0.00018515,2]
[374658178,1753403446672,-460.0,0.00018515,2]
[374658180,1753403446682,-460.0,0.00018515,2]
[374658182,1753403446692,-757.41,0.00018515,2]
[374658184,1753403446702,-460.0,0.00018515,2]
[374658186,1753403446713,-460.0,0.00018515,2]
[374658188,1753403446722,-460.0,0.00018515,2]
[374658190,1753403446731,-460.0,0.00018515,2]
[374658192,1753403446741,-460.0,0.00018515,2]
[374658194,1753403446753,-460.0,0.00018515,2]
[374658196,1753403446762,-460.0,0.00018515,2]
[374658198,1753403446772,-460.0,0.00018515,2]
[374658200,1753403446781,-460.0,0.00018515,2]
[374658202,1753403446791,-463.01164585,0.00018515,2]
[374658204,1753403446800,-532.86198127,0.00018515,2]
[374658205,1753403446810,-460.0,0.00018515,2]
[374658206,1753403446820,-517.86457051,0.00018515,2]
[374658207,1753403446829,-460.0,0.00018515,2]
[374658208,1753403446839,-460.0,0.00018515,2]
[374658209,1753403446849,-460.0,0.00018515,2]
[374658210,1753403446859,-460.85770457,0.00018515,2]
[374658211,1753403446869,-460.0,0.00018515,2]
[374658212,1753403446878,-460.0,0.00018515,2]
[374658213,1753403446888,-460.0,0.00018515,2]
[374658214,1753403446897,-460.0,0.00018515,2]
[374658215,1753403446907,-460.0,0.00018515,2]
[374658217,1753403446916,-460.0,0.00018515,2]
[374658219,1753403446926,-460.0,0.00018515,2]
[374658221,1753403446935,-460.0,0.00018515,2]
[374658223,1753403446946,-460.0,0.00018515,2]
[374658225,1753403446956,-460.0,0.00018515,2]
[374658227,1753403446965,-460.0,0.00018515,2]
[374658229,1753403446975,-460.0,0.00018515,2]
[374658231,1753403446985,-460.0,0.00018515,2]
[374658233,1753403446995,-460.0,0.00018515,2]
[374658235,1753403447008,-460.0,0.00018515,2]
[374658237,1753403447018,-460.0,0.00018515,2]
[374658239,1753403447027,-460.0,0.00018515,2]
[374658241,1753403447036,-777.25,0.00018515,2]
[374658243,1753403447046,-460.0,0.00018515,2]
[374658245,1753403447055,-1547.17,0.00018515,2]
[374658247,1753403447065,-460.0,0.00018515,2]
[374658249,1753403447074,-460.0,0.00018515,2]
[374658251,1753403447083,-460.0,0.00018515,2]
[374658253,1753403447093,-460.0,0.00018515,2]
[374658255,1753403447103,-460.0,0.00018515,2]
[374658257,1753403447113,-460.0,0.00018515,2]
[374658259,1753403447122,-460.0,0.00018515,2]
[374658261,1753403447134,-460.0,0.00018515,2]
[374658263,1753403447152,-1507.8,0.00018515,2]
[374658266,1753403447162,-460.0,0.00018515,2]
[374658268,1753403447171,-1157.67,0.00018515,2]
[374658269,1753403447180,-491.14,0.00018515,2]
[374658272,1753403447190,-481.62,0.00018515,2]
[374658273,1753403447199,-460.0,0.00018515,2]
[374658275,1753403447208,-1071.58,0.00018515,2]
[374658277,1753403447220,-877.32,0.00018515,2]
[374658280,1753403447231,-460.0,0.00018515,2]
[374658282,1753403447240,-460.0,0.00018515,2]
[374658284,1753403447253,-572.88,0.00018515,2]
[374658286,1753403447262,-460.0,0.00018515,2]
[374658287,1753403447271,-460.0,0.00018515,2]
[374658289,1753403447281,-460.0,0.00018515,2]
[374658292,1753403447291,-1264.56,0.00018515,2]
[374658294,1753403447300,-464.26408696,0.00018515,2]
[374658296,1753403447309,-460.0,0.00018515,2]
[374658298,1753403447318,-460.0,0.00018515,2]
[374658300,1753403447328,-460.0,0.00018515,2]
[374658302,1753403447339,-463.53020749,0.00018515,2]
[374658304,1753403447348,-460.0,0.00018516,2]
[374658306,1753403447357,-460.0,0.00018516,2]
[374658307,1753403447366,-460.0,0.00018516,2]
[374658310,1753403447375,-273.43389691,0.00018516,2]
[374658311,1753403447385,-460.0,0.00018516,2]
[374658313,1753403447394,-610.19,0.00018516,2]
[374658315,1753403447403,-5845.77,0.00018516,2]
[374658317,1753403447412,-500.0,0.00018516,2]
[374658319,1753403447422,-235.09118478,0.00018516,2]
[374658322,1753403447431,-2552.59,0.00018516,2]
[374658323,1753403447441,-2511.43,0.00018516,2]
[374658325,1753403447450,-3274.76,0.00018516,2]
[374658327,1753403447460,-3274.76,0.00018516,2]
[374658330,1753403447470,-460.0,0.00018516,2]
[374658332,1753403447479,-460.0,0.00018517,2]
[374658334,1753403447488,-460.0,0.00018517,2]
[374658335,1753403447498,-460.0,0.00018517,2]
[374658338,1753403447510,-460.0,0.00018517,2]
[374658340,1753403447519,-460.0,0.00018517,2]
[374658342,1753403447529,-540.0,0.00018517,2]
[374658344,1753403447538,-460.0,0.00018517,2]
[374658345,1753403447548,-460.0,0.00018517,2]
[374658347,1753403447557,-460.0,0.00018517,2]
[374658350,1753403447568,-422.72900678,0.00018517,2]
[374658352,1753403447578,-460.0,0.00018517,2]
[374658354,1753403447587,-460.0,0.00018517,2]
[374658356,1753403447598,-460.0,0.00018517,2]
[374658358,1753403447615,-460.0,0.00018517,2]
[374658360,1753403447625,-597.39,0.00018517,2]
[374658362,1753403447634,-460.0,0.00018517,2]
[374658364,1753403447643,-460.0,0.00018517,2]
[374658366,1753403447653,-460.0,0.00018517,2]
[374658368,1753403447663,-944.16,0.00018517,2]
[374658370,1753403447674,-460.0,0.00018517,2]
[374658372,1753403447683,-460.0,0.00018517,2]
[374658375,1753403447693,-1040.64,0.00018517,2]
[374658377,1753403447702,-460.0,0.00018517,2]
[374658379,1753403447711,-606.81,0.00018517,2]
[374658381,1753403447721,-863.85,0.00018517,2]
[374658382,1753403447730,-460.0,0.00018517,2]
[374658385,1753403447739,-460.0,0.00018517,2]
[374658387,1753403447749,-748.89,0.00018517,2]
[374658388,1753403447762,-460.0,0.00018517,2]
[374658391,1753403447772,-460.0,0.00018517,2]
[374658393,1753403447782,-460.0,0.00018517,2]
[374658395,1753403447791,-466.14135309,0.00018517,2]
[374658397,1753403447800,-460.0,0.00018517,2]
[374658399,1753403447809,-460.0,0.00018517,2]
[374658401,1753403447819,-814.22,0.00018517,2]
[374658403,1753403447828,-460.0,0.00018517,2]
[374658405,1753403447838,-460.0,0.00018517,2]
[374658407,1753403447847,-460.0,0.00018517,2]
[374658409,1753403447856,-1314.45,0.00018517,2]
[374658411,1753403447865,-1394.83,0.00018517,2]
[374658413,1753403447875,-460.0,0.00018517,2]
[374658415,1753403447884,-460.0,0.00018517,2]
[374658417,1753403447894,-460.0,0.00018517,2]
[374658419,1753403447904,-460.0,0.00018517,2]
[374658420,1753403447913,-460.0,0.00018517,2]
[374658423,1753403447922,-629.64,0.00018517,2]
[374658425,1753403447933,-1301.85,0.00018517,2]
[374658436,1753403448030,-460.0,0.00018517,2]
[374658438,1753403448040,-460.0,0.00018517,2]
[374658440,1753403448051,-460.0,0.00018517,2]
[374658442,1753403448067,-762.27,0.00018517,2]
[374658444,1753403448077,-460.0,0.00018517,2]
[374658446,1753403448087,-460.0,0.00018517,2]
[374658448,1753403448097,-460.0,0.00018517,2]
[374658450,1753403448107,-460.0,0.00018517,2]
[374658452,1753403448116,-460.0,0.00018517,2]
[374658454,1753403448126,-654.44,0.00018517,2]
[374658456,1753403448135,-460.0,0.00018517,2]
[374658458,1753403448145,-460.0,0.00018517,2]
[374658460,1753403448155,-460.0,0.00018517,2]
[374658462,1753403448164,-583.62,0.00018517,2]
[374658464,1753403448173,-611.33,0.00018517,2]
[374658466,1753403448183,-696.94,0.00018517,2]
[374658468,1753403448193,-938.95,0.00018517,2]
[374658470,1753403448203,-460.0,0.00018517,2]
[374658472,1753403448213,-460.0,0.00018517,2]
[374658474,1753403448223,-584.1,0.00018517,2]
[374658476,1753403448235,-460.0,0.00018517,2]
[374658478,1753403448244,-460.0,0.00018517,2]
[374658480,1753403448255,-1418.18,0.00018517,2]
[374658482,1753403448266,-1188.07,0.00018517,2]
[374658484,1753403448277,-460.0,0.00018517,2]
[374658486,1753403448286,-460.0,0.00018517,2]
[374658488,1753403448297,-460.0,0.00018517,2]
[374658490,1753403448307,-756.86,0.00018517,2]
[374658492,1753403448316,-460.0,0.00018517,2]
[374658494,1753403448325,-2548.02,0.00018517,2]
[374658496,1753403448335,-460.0,0.00018517,2]
[374658498,1753403448345,-562.5,0.00018528,2]
[374658500,1753403448354,-562.5,0.00018528,2]
[374658502,1753403448366,-562.5,0.00018528,2]
[374658504,1753403448383,-215.0738,0.00018536,2]
[374658506,1753403448393,-151.0,0.00018536,2]
[374658508,1753403448403,-151.0,0.00018536,2]
[374658510,1753403448413,-151.0,0.00018536,2]
[374658512,1753403448423,-3274.76,0.00018538,2]
[374658515,1753403448432,-562.5,0.0001854,2]
[374658517,1753403448443,-562.5,0.0001854,2]
[374658518,1753403448453,-473.14714418,0.00018541,2]
[374658520,1753403448463,-460.0,0.00018541,2]
[374658523,1753403448473,-568.95,0.00018541,2]
[374658524,1753403448484,-460.0,0.00018541,2]
[374658526,1753403448494,-460.0,0.00018541,2]
[374658529,1753403448508,-460.0,0.00018541,2]
[374658530,1753403448518,-460.0,0.00018541,2]
[374658533,1753403448529,-460.0,0.00018541,2]
[374658535,1753403448539,-460.0,0.00018541,2]
[374658537,1753403448549,-460.0,0.00018541,2]
[374658539,1753403448559,-460.0,0.00018541,2]
[374658541,1753403448569,-460.0,0.00018541,2]
[374658543,1753403448578,-460.0,0.00018541,2]
[374658545,1753403448587,-460.0,0.00018541,2]
[374658547,1753403448596,-460.0,0.00018541,2]
[374658548,1753403448606,-460.0,0.00018541,2]
[374658551,1753403448616,-460.0,0.00018541,2]
[374658553,1753403448626,-460.0,0.00018541,2]
[374658555,1753403448635,-677.81,0.00018541,2]
[374658556,1753403448645,-468.73905628,0.00018541,2]
[374658558,1753403448655,-460.0,0.00018541,2]
[374658561,1753403448665,-460.0,0.00018541,2]
[374658562,1753403448674,-460.0,0.00018541,2]
[374658565,1753403448685,-460.0,0.00018541,2]
[374658567,1753403448695,-460.0,0.00018541,2]
[374658569,1753403448704,-562.5,0.00018542,2]
[374658571,1753403448715,-3274.76,0.00018542,2]
[374658573,1753403448724,-460.0,0.00018543,2]
[374658575,1753403448734,-462.06309785,0.00018543,2]
[374658577,1753403448743,-460.0,0.00018543,2]
[374658579,1753403448755,-460.0,0.00018543,2]
[374658581,1753403448764,-562.5,0.00018544,2]
[374658583,1753403448774,-562.5,0.00018544,2]
[374658585,1753403448785,-3274.76,0.00018544,2]
[374658587,1753403448795,-460.0,0.00018545,2]
[374658589,1753403448805,-838.89,0.00018545,2]
[374658591,1753403448816,-460.0,0.00018545,2]
[374658593,1753403448827,-460.0,0.00018545,2]
[374658595,1753403448837,-460.0,0.00018545,2]
[374658597,1753403448847,-460.0,0.00018545,2]
[374658599,1753403448857,-460.98222374,0.00018545,2]
[374658602,1753403448867,-460.0,0.00018545,2]
[374658603,1753403448877,-460.0,0.00018545,2]
[374658605,1753403448886,-460.0,0.00018545,2]
[374658608,1753403448896,-460.0,0.00018545,2]
[374658610,1753403448905,-460.0,0.00018545,2]
[374658612,1753403448915,-460.0,0.00018545,2]
[374658614,1753403448925,-460.0,0.00018545,2]
[374658616,1753403448934,-460.0,0.00018545,2]
[374658618,1753403448944,-879.6,0.00018545,2]
[374658619,1753403448953,-460.0,0.00018545,2]
[374658621,1753403448964,-460.0,0.00018545,2]
[374658623,1753403448974,-460.0,0.00018545,2]
[374658626,1753403448984,-460.0,0.00018545,2]
[374658627,1753403448994,-460.0,0.00018545,2]
[374658629,1753403449005,-461.48892845,0.00018545,2]
[374658631,1753403449015,-460.0,0.00018545,2]
[374658634,1753403449025,-460.0,0.00018545,2]
[374658635,1753403449035,-460.0,0.00018545,2]
[374658636,1753403449044,-460.0,0.00018545,2]
[374658638,1753403449054,-460.0,0.00018545,2]
[374658640,1753403449063,-1019.32,0.00018545,2]
[374658642,1753403449073,-461.19228393,0.00018545,2]
[374658644,1753403449083,-234.42535669,0.00018545,2]
[374658646,1753403449092,-500.00000002,0.00018545,2]
[374658648,1753403449102,-460.0,0.00018545,2]
[374658650,1753403449112,-460.0,0.00018545,2]
[374658652,1753403449122,-460.0,0.00018545,2]
[374658654,1753403449131,-461.19601133,0.00018545,2]
[374658656,1753403449141,-460.0,0.00018545,2]
[374658658,1753403449151,-460.0,0.00018545,2]
[374658660,1753403449161,-460.0,0.00018545,2]
[374658662,1753403449170,-460.0,0.00018545,2]
[374658664,1753403449179,-460.0,0.00018545,2]
[374658666,1753403449189,-460.0,0.00018545,2]
[374658668,1753403449199,-460.0,0.00018545,2]
[374658670,1753403449208,-460.0,0.00018545,2]
[374658672,1753403449217,-518.36,0.00018545,2]
[374658674,1753403449227,-562.5,0.00018546,2]
[374658676,1753403449238,-562.5,0.00018546,2]
[374658678,1753403449248,-562.5,0.00018546,2]
[374658680,1753403449260,-562.5,0.00018546,2]
[374658682,1753403449270,-562.5,0.00018546,2]
[374658684,1753403449281,-562.5,0.00018546,2]
[374658685,1753403449290,-365.87079935,0.00018547,2]
[374658686,1753403449299,-460.0,0.00018547,2]
[374658687,1753403449311,-3274.76,0.00018572,2]
[374658688,1753403449321,-3274.76,0.00018572,2]
[374658689,1753403449331,-3274.76,0.00018572,2]
[374658690,1753403449341,-3274.76,0.00018572,2]
[374658691,1753403449351,-3274.94079285,0.00018572,2]
[374658692,1753403449360,-528.06012073,0.00018573,2]
[374658693,1753403449370,-500.0,0.00018573,2]
[374658694,1753403449380,-500.0,0.00018573,2]
[374658695,1753403449389,-500.0,0.00018573,2]
[374658696,1753403449399,-500.0,0.00018573,2]
[374658697,1753403449408,-500.0,0.00018573,2]
[374658698,1753403449418,-500.0,0.00018573,2]
[374658699,1753403449427,-500.0,0.00018573,2]
[374658700,1753403449436,-500.0,0.00018573,2]
[374658701,1753403449446,-500.0,0.00018573,2]
[374658702,1753403449455,-500.0,0.00018573,2]
[374658703,1753403449466,-500.0,0.00018573,2]
[374658704,1753403449476,-500.41098404,0.00018573,2]
[374658705,1753403449485,-500.0,0.00018573,2]
[374658706,1753403449495,-500.0,0.00018573,2]
[374658707,1753403449584,-500.0,0.00018573,2]
[374658708,1753403449594,-500.0,0.00018573,2]
[374658709,1753403449604,-500.0,0.00018573,2]
[374658710,1753403449614,-500.30179745,0.00018573,2]
[374658711,1753403449623,-500.0,0.00018573,2]
[374658712,1753403449633,-1168.00721077,0.00018623,2]
[374658713,1753403449643,-460.73532288,0.00018703,2]
[374658714,1753403449653,-3591.58,0.00018703,2]
[374658715,1753403449663,-460.0,0.00018703,2]
[374658716,1753403449672,-541.22,0.00018703,2]
[374658717,1753403449683,-1056.91,0.00018703,2]
[374658718,1753403449693,-1275.35,0.00018703,2]
[374658719,1753403449703,-460.0,0.00018703,2]
[374658720,1753403449713,-3097.91,0.00018703,2]
[374658721,1753403449723,-4502.54,0.00018703,2]
[374658722,1753403449733,-3669.95,0.00018703,2]
[374658723,1753403449744,-460.0,0.00018703,2]
[374658724,1753403449762,-460.0,0.00018715,2]
[374658725,1753403449773,-460.0,0.00018715,2]
[374658726,1753403449784,-460.0,0.00018715,2]
[374658727,1753403449794,-497.93,0.00018715,2]
[374658728,1753403449804,-487.29,0.00018715,2]
[374658729,1753403449814,-460.0,0.00018715,2]
[374658730,1753403449825,-460.0,0.00018715,2]
[374658731,1753403449836,-460.0,0.00018715,2]
[374658732,1753403449847,-460.0,0.00018715,2]
[374658733,1753403449857,-460.0,0.00018715,2]
[374658734,1753403449868,-460.0,0.00018715,2]
[374658735,1753403449878,-460.0,0.00018715,2]
[374658736,1753403449888,-460.0,0.00018715,2]
[374658737,1753403449899,-508.07184855,0.00018715,2]
[374658738,1753403449908,-713.91,0.00018715,2]
[374658739,1753403449918,-460.0,0.00018715,2]
[374658740,1753403449927,-1821.3,0.00018715,2]
[374658741,1753403449937,-460.0,0.00018715,2]
[374658742,1753403449947,-613.0,0.00018715,2]
[374658743,1753403449957,-669.88,0.00018715,2]
[374658744,1753403449967,-460.0,0.00018715,2]
[374658745,1753403449976,-458.40963007,0.00018715,2]
[374658746,1753403449986,-460.0,0.00018715,2]
[374658747,1753403449995,-914.47,0.00018715,2]
[374658748,1753403450010,-781.02,0.00018715,2]
[374658749,1753403450020,-460.0,0.00018715,2]
[374658750,1753403450029,-462.74713378,0.00018715,2]
[374658751,1753403450039,-231.18498961,0.00018715,2]
[374658752,1753403450048,-460.0,0.00018715,2]
[374658753,1753403450058,-461.8206878,0.00018715,2]
[374658754,1753403450068,-460.0,0.00018715,2]
[374658755,1753403450078,-460.0,0.00018715,2]
[374658757,1753403450087,-460.0,0.00018715,2]
[374658759,1753403450096,-460.0,0.00018715,2]
[374658760,1753403450106,-460.0,0.00018715,2]
[374658761,1753403450116,-460.0,0.00018715,2]
[374658762,1753403450126,-460.0,0.00018715,2]
[374658763,1753403450135,-460.0,0.00018715,2]
[374658764,1753403450144,-460.0,0.00018715,2]
[374658765,1753403450154,-269.4972036,0.00018715,2]
[374658766,1753403450163,-460.0,0.00018715,2]
[374658767,1753403450173,-465.39124234,0.00018715,2]
[374658768,1753403450183,-721.46,0.00018715,2]
[374658769,1753403450192,-460.0,0.00018715,2]
[374658770,1753403450202,-588.83172622,0.00018715,2]
[374658771,1753403450212,-460.0,0.00018715,2]
[374658772,1753403450222,-460.0,0.00018715,2]
[374658773,1753403450232,-505.29,0.00018715,2]
[374658774,1753403450245,-460.0,0.00018715,2]
[374658775,1753403450257,-460.0,0.00018715,2]
[374658776,1753403450267,-460.0,0.00018715,2]
[374658777,1753403450277,-460.0,0.00018715,2]
[374658778,1753403450286,-460.0,0.00018715,2]
[374658779,1753403450296,-1720.45,0.00018715,2]
[374658780,1753403450306,-460.0,0.00018715,2]
[374658781,1753403450315,-327.56504906,0.00018715,2]
[374658782,1753403450324,-667.86,0.00018715,2]
[374658783,1753403450334,-460.0,0.00018715,2]
[374658784,1753403450343,-460.0,0.00018715,2]
[374658785,1753403450354,-460.0,0.00018715,2]
[374658786,1753403450364,-460.0,0.00018715,2]
[374658787,1753403450374,-460.0,0.00018715,2]
[374658788,1753403450385,-460.0,0.00018715,2]
[374658789,1753403450394,-460.0,0.00018715,2]
[374658790,1753403450404,-460.0,0.00018715,2]
[374658791,1753403450414,-460.0,0.00018715,2]
[374658792,1753403450423,-460.0,0.00018715,2]
[374658793,1753403450432,-460.0,0.00018715,2]
[374658794,1753403450442,-460.0,0.00018715,2]
[374658795,1753403450451,-815.21,0.00018715,2]
[374658796,1753403450461,-460.0,0.00018715,2]
[374658797,1753403450471,-460.0,0.00018715,2]
[374658798,1753403450481,-460.0,0.00018715,2]
[374658799,1753403450491,-460.0,0.00018715,2]
[374658800,1753403450500,-573.0680116,0.00018715,2]
[374658801,1753403450513,-460.0,0.00018715,2]
[374658802,1753403450523,-460.0,0.00018715,2]
[374658803,1753403450532,-658.4,0.00018715,2]
[374658804,1753403450542,-460.0,0.00018715,2]
[374658805,1753403450551,-460.0,0.00018715,2]
[374658806,1753403450561,-467.23,0.00018715,2]
[374658807,1753403450571,-504.80154515,0.00018715,2]
[374658808,1753403450581,-460.0,0.00018715,2]
[374658809,1753403450591,-500.0,0.00018715,2]
[374658810,1753403450600,-460.0,0.00018715,2]
[374658811,1753403450610,-848.09,0.00018715,2]
[374658812,1753403450619,-501.487689,0.00018773,2]
[374658813,1753403450629,-500.0,0.00018773,2]
[374658814,1753403450639,-500.0,0.00018773,2]
[374658815,1753403450649,-500.0,0.00018773,2]
[374658816,1753403450658,-182.27073641,0.00018773,2]
[374658817,1753403450668,-500.0,0.00018773,2]
[374658818,1753403450678,-500.0,0.00018773,2]
[374658819,1753403450687,-500.0,0.00018773,2]
[374658820,1753403450697,-509.87246826,0.00018773,2]
[374658821,1753403450706,-500.0,0.00018773,2]
[374658822,1753403450716,-460.0,0.00018782,2]
[374658823,1753403450726,-460.0,0.00018782,2]
[374658824,1753403450735,-914.31,0.00018782,2]
[374658825,1753403450744,-487.10633881,0.00018782,2]
[374658826,1753403450756,-460.0,0.00018782,2]
[374658827,1753403450765,-248.96851732,0.00018782,2]
[374658828,1753403450776,-829.03,0.00018782,2]
[374658829,1753403450785,-2681.77,0.00018782,2]
[374658830,1753403450795,-460.0,0.00018784,2]
[374658831,1753403450804,-460.0,0.00018784,2]
[374658832,1753403450814,-460.0,0.00018784,2]